fUSD/lending_fUSD_20251225
["ID","MTS","AMOUNT","RATE_DAILY","PERIOD"]
[399741788,1766650242878,-152.0,0.00013515,2]
[399741789,1766650242888,-1256.0,0.00013515,2]
[399741790,1766650242898,-152.0,0.00013515,2]
[399741791,1766650242908,-152.0,0.00013515,2]
[399741792,1766650242919,-1256.0,0.00013515,2]
[399741793,1766650242929,-152.0,0.00013515,2]
[399741794,1766650242940,-152.0,0.00013515,2]
[399741795,1766650242950,-1256.0,0.00013515,2]
[399741796,1766650242961,-152.0,0.00013515,2]
[399741797,1766650242972,-152.0,0.00013515,2]
[399741798,1766650242982,-1256.0,0.00013515,2]
[399741799,1766650242993,-152.0,0.00013515,2]
[399741800,1766650243006,-152.0,0.00013515,2]
[399741801,1766650243016,-1256.0,0.00013515,2]
[399741803,1766650243026,-152.0,0.00013515,2]
[399741805,1766650243036,-1256.0,0.00013515,2]
[399741807,1766650243047,-152.0,0.00013515,2]
[399741809,1766650243058,-152.0,0.00013515,2]
[399741811,1766650243070,-1256.0,0.00013515,2]
[399741813,1766650243080,-152.0,0.00013515,2]
[399741814,1766650243090,-152.0,0.00013515,2]
[399741815,1766650243100,-1256.0,0.00013515,2]
[399741816,1766650243112,-152.0,0.00013515,2]
[399741817,1766650243123,-1256.0,0.00013515,2]
[399741818,1766650243133,-152.0,0.00013515,2]
[399741819,1766650243143,-152.0,0.00013515,2]
[399741820,1766650243154,-1256.0,0.00013515,2]
[399741821,1766650243164,-152.0,0.00013515,2]
[399741822,1766650243175,-152.0,0.00013515,2]
[399741823,1766650243185,-152.0,0.00013515,2]
[399741824,1766650243195,-152.0,0.00013515,2]
[399741825,1766650243205,-1256.0,0.00013515,2]
[399741826,1766650243216,-152.0,0.00013515,2]
[399741827,1766650243226,-1129.52601387,0.00013515,2]
[399741828,1766650243236,-152.0,0.00013515,2]
[399741829,1766650243246,-152.0,0.00013515,2]
[399741831,1766650243256,-1256.0,0.00013515,2]
[399741833,1766650243266,-152.0,0.00013515,2]
[399741834,1766650243276,-152.0,0.00013515,2]
[399741835,1766650243286,-1256.0,0.00013515,2]
[399741836,1766650243296,-152.0,0.00013515,2]
[399741837,1766650243306,-152.0,0.00013515,2]
[399741838,1766650243316,-152.0,0.00013515,2]
[399741839,1766650243327,-206.21647338,0.00013515,2]
[399741840,1766650243337,-152.0,0.00013515,2]
[399741841,1766650243348,-152.0,0.00013515,2]
[399741842,1766650243358,-152.0,0.00013515,2]
[399741843,1766650243368,-152.0,0.00013515,2]
[399741844,1766650243378,-152.0,0.00013515,2]
[399741845,1766650243388,-152.0,0.00013515,2]
[399741846,1766650243399,-152.0,0.00013515,2]
[399741847,1766650243409,-153.0,0.00013515,2]
[399741848,1766650243420,-153.0,0.00013515,2]
[399741849,1766650243433,-153.0,0.00013515,2]
[399741850,1766650243442,-500.0,0.00013698,2]
[399741851,1766650243452,-500.0,0.00013698,2]
[399741852,1766650243462,-500.0,0.00013698,2]
[399741853,1766650243474,-313.70462567,0.00013698,2]
[399741854,1766650243484,-550.16,0.00013698,2]
[399741855,1766650243494,-550.16,0.00013698,2]
[399741856,1766650243505,-550.16,0.00013698,2]
[399741857,1766650243515,-550.16,0.00013698,2]
[399741858,1766650243525,-500.0,0.00013698,2]
[399741859,1766650243535,-500.0,0.00013698,2]
[399741860,1766650243546,-500.0,0.00013698,2]
[399741861,1766650243556,-325.50708254,0.00013698,2]
[399741862,1766650243567,-500.0,0.00013698,2]
[399741863,1766650243577,-500.0,0.00013698,2]
[399741864,1766650243588,-500.0,0.00013698,2]
[399741865,1766650243598,-500.0,0.00013698,2]
[399741866,1766650243609,-238.33319847,0.00013698,2]
[399741867,1766650243619,-500.0,0.00013698,2]
[399741868,1766650243629,-500.0,0.00013698,2]
[399741869,1766650243639,-500.0,0.00013698,2]
[399741870,1766650243650,-500.0,0.00013698,2]
[399741871,1766650243660,-500.0,0.00013698,2]
[399741872,1766650243670,-500.0,0.00013698,2]
[399741873,1766650243681,-500.0,0.00013698,2]
[399741874,1766650243690,-500.0,0.00013698,2]
[399741875,1766650243700,-500.0,0.00013698,2]
[399741876,1766650243710,-500.0,0.00013698,2]
[399741877,1766650243720,-500.0,0.00013698,2]
[399741879,1766650243730,-500.0,0.00013698,2]
[399741881,1766650243741,-500.0,0.00013698,2]
[399741882,1766650243751,-500.0,0.00013698,2]
[399741883,1766650243761,-500.0,0.00013698,2]
[399741884,1766650243771,-500.0,0.00013698,2]
[399741885,1766650243781,-500.0,0.00013698,2]
[399741886,1766650243792,-500.0,0.00013698,2]
[399741887,1766650243802,-508.51346411,0.00013698,2]
[399741888,1766650243813,-500.0,0.00013698,2]
[399741889,1766650243823,-500.0,0.00013698,2]
[399741890,1766650243833,-500.0,0.00013698,2]
[399741891,1766650243843,-500.0,0.00013698,2]
[399741892,1766650243853,-500.0,0.00013698,2]
[399741893,1766650243863,-500.0,0.00013698,2]
[399741894,1766650243873,-500.0,0.00013698,2]
[399741895,1766650243882,-526.94684762,0.00013698,2]
[399741896,1766650243892,-500.0,0.00013698,2]
[399741897,1766650243902,-500.0,0.00013698,2]
[399741898,1766650243912,-500.0,0.00013698,2]
[399741899,1766650243922,-500.0,0.00013698,2]
[399741900,1766650243932,-500.0,0.00013698,2]
[399741901,1766650243942,-500.0,0.00013698,2]
[399741902,1766650243952,-587.42809654,0.00013698,2]
[399741903,1766650243962,-200.0,0.00013699,2]
[399741904,1766650243973,-152.0,0.000137,2]
[399741905,1766650243983,-166.66,0.00013769,2]
[399741906,1766650243995,-150.0,0.0001388,2]
[399741907,1766650244006,-151.0,0.000139,2]
[399741908,1766650244016,-151.0,0.000139,2]
[399741909,1766650244026,-1852.42,0.00013924,2]
[399741910,1766650244035,-180.0,0.00013929,2]
[399741911,1766650244045,-587.0,0.00013929,2]
[399741912,1766650244055,-151.0,0.00013981,2]
[399741913,1766650244066,-151.0,0.00013981,2]
[399741914,1766650244076,-250.0,0.00014051,2]
[399741915,1766650244085,-250.0,0.00014051,2]
[399741916,1766650244095,-250.0,0.00014051,2]
[399741917,1766650244105,-394.46532357,0.00014051,2]
[399741918,1766650244115,-162.74,0.00014168,2]
[399741919,1766650244126,-166.66,0.00014195,2]
[399741920,1766650244136,-200.0,0.00014388,2]
[399741921,1766650244147,-600.0,0.00014432,2]
[399741922,1766650244157,-3282.27716265,0.00014517,2]
[399741923,1766650244166,-8448.99197037,0.00014595,2]
[399741924,1766650244177,-166.66,0.00014621,2]
[399741925,1766650244187,-247.85,0.00014965,2]
[399741926,1766650244197,-166.66,0.00015048,2]
[399741927,1766650244207,-250.0,0.00015075,2]
[399741928,1766650244216,-152.0,0.000152,2]
[399741929,1766650244226,-152.0,0.000152,2]
[399741930,1766650244236,-152.0,0.000152,2]
[399741931,1766650244246,-823.0,0.00015298,2]
[399741932,1766650244256,-150.0,0.00015315,2]
[399741933,1766650244267,-3240.0,0.0001534,2]
[399741934,1766650244277,-373.17395227,0.00015396,2]
[399741935,1766650244288,-150.0,0.00015458,2]
[399741936,1766650244299,-3282.27716265,0.00015986,2]
[399741937,1766650244309,-8448.99197037,0.00016053,2]
[399741938,1766650244319,-1000.0,0.000161,2]
[399741939,1766650244329,-1000.0,0.000161,2]
[399741940,1766650244339,-1000.0,0.000161,2]
[399741941,1766650244350,-1000.0,0.000161,2]
[399741942,1766650244360,-635.1033867,0.00016189,2]
[399741943,1766650244370,-162.74,0.00016192,2]
[399741944,1766650244381,-1000.0,0.000163,2]
[399741945,1766650244395,-500.0,0.00016438,2]
[399741946,1766650244405,-500.0,0.00016438,2]
[399741947,1766650244415,-500.0,0.00016438,2]
[399741948,1766650244426,-304.35756711,0.00016438,2]
[399741949,1766650244440,-500.0,0.00016438,2]
[399741950,1766650244450,-600.0,0.00016438,2]
[399741951,1766650244461,-10000.0,0.00016599,2]
[399741952,1766650244471,-152.0,0.000166,2]
[399741953,1766650244481,-152.0,0.000166,2]
[399741954,1766650244491,-152.0,0.000166,2]
[399741955,1766650244502,-12287.41952416,0.0001666,2]
[399741956,1766650244512,-150.0,0.00016699,2]
[399741957,1766650244523,-150.0,0.00016699,2]
[399741958,1766650244533,-500.0,0.00016699,2]
[399741959,1766650244543,-500.0,0.00016699,2]
[399741960,1766650244553,-150.0,0.00016699,2]
[399741961,1766650244563,-500.0,0.00016699,2]
[399741962,1766650244573,-500.0,0.00016699,2]
[399741963,1766650244583,-500.0,0.00016699,2]
[399741964,1766650244594,-500.0,0.00016699,2]
[399741965,1766650244604,-500.0,0.00016699,2]
[399741966,1766650244615,-150.0,0.00016699,2]
[399741967,1766650244625,-150.0,0.00016699,2]
[399741968,1766650244636,-500.0,0.00016699,2]
[399741969,1766650244646,-881.79,0.0001671,2]
[399741970,1766650244655,-166.63,0.00016712,2]
[399741971,1766650244666,-267.77127482,0.00016726,2]
[399741972,1766650244676,-500.0,0.00016726,2]
[399741973,1766650244687,-150.0,0.00016726,2]
[399741974,1766650244697,-500.0,0.00016726,2]
[399741975,1766650244707,-500.0,0.00016726,2]
[399741976,1766650244718,-500.0,0.00016726,2]
[399741977,1766650244727,-500.0,0.00016726,2]
[399741978,1766650244737,-500.0,0.00016726,2]
[399741979,1766650244747,-500.0,0.00016726,2]
[399741980,1766650244757,-500.0,0.00016726,2]
[399741981,1766650244766,-255.7741324,0.00016754,2]
[399741982,1766650244776,-500.0,0.00016754,2]
[399741983,1766650244786,-500.0,0.00016754,2]
[399741984,1766650244796,-500.0,0.00016754,2]
[399741985,1766650244806,-500.0,0.00016754,2]
[399741986,1766650244816,-500.0,0.00016754,2]
[399741987,1766650244826,-500.0,0.00016754,2]
[399741988,1766650244836,-500.0,0.00016754,2]
[399741989,1766650244846,-500.0,0.00016754,2]
[399741990,1766650244856,-500.0,0.00016781,2]
[399741991,1766650244866,-500.0,0.00016781,2]
[399741992,1766650244891,-500.0,0.00016781,2]
[399741993,1766650244902,-500.0,0.00016781,2]
[399741994,1766650244913,-500.0,0.00016781,2]
[399741995,1766650244923,-500.0,0.00016781,2]
[399741996,1766650244934,-500.0,0.00016781,2]
[399741997,1766650244944,-464.91531166,0.00016781,2]
[399741998,1766650244956,-1152.0,0.00016801,2]
[399741999,1766650244966,-500.0,0.00016809,2]
[399742000,1766650244976,-265.16707175,0.00016809,2]
[399742001,1766650244987,-500.0,0.00016809,2]
[399742002,1766650244997,-500.0,0.00016809,2]
[399742003,1766650245007,-158.19288149,0.00016809,2]
[399742004,1766650245017,-500.0,0.00016809,2]
[399742005,1766650245027,-500.0,0.00016809,2]
[399742006,1766650245038,-225.0,0.0001681,2]
[399742007,1766650245048,-500.0,0.00016836,2]
[399742008,1766650245058,-500.0,0.00016836,2]
[399742009,1766650245068,-500.0,0.00016836,2]
[399742010,1766650245079,-500.0,0.00016836,2]
[399742011,1766650245089,-500.0,0.00016836,2]
[399742012,1766650245099,-500.0,0.00016863,2]
[399742013,1766650245110,-453.68455195,0.00016863,2]
[399742014,1766650245120,-500.0,0.00016863,2]
[399742015,1766650245131,-500.0,0.00016863,2]
[399742016,1766650245141,-200.0,0.00016864,2]
[399742017,1766650245152,-500.0,0.00016891,2]
[399742018,1766650245163,-500.0,0.00016891,2]
[399742019,1766650245174,-500.0,0.00016891,2]
[399742020,1766650245189,-203.64193839,0.00016898,2]
[399742021,1766650245200,-152.0,0.000169,2]
[399742022,1766650245211,-152.0,0.000169,2]
[399742023,1766650245222,-152.0,0.000169,2]
[399742024,1766650245237,-152.0,0.000169,2]
[399742025,1766650245248,-2883.4655357,0.000169,2]
[399742026,1766650245259,-7509.0,0.000169,2]
[399742027,1766650245271,-500.0,0.00016918,2]
[399742028,1766650245281,-500.0,0.00016918,2]
[399742029,1766650245292,-500.0,0.00016918,2]
[399742030,1766650245303,-224.2608279,0.00016933,2]
[399742031,1766650245598,-214.0,0.00016946,2]
[399742032,1766650245641,-350.0,0.00016946,2]
[399742033,1766650245652,-500.0,0.00016946,2]
[399742034,1766650245663,-504.42223695,0.00016973,2]
[399742035,1766650245674,-500.0,0.00016973,2]
[399742036,1766650245685,-547.46538815,0.00016973,2]
[399742037,1766650245695,-500.0,0.00016973,2]
[399742038,1766650245706,-500.0,0.00016973,2]
[399742039,1766650245716,-500.0,0.00016973,2]
[399742040,1766650245726,-500.0,0.00016973,2]
[399742041,1766650245736,-506.70149781,0.00016973,2]
[399742042,1766650245747,-502.33266332,0.00016973,2]
[399742043,1766650245757,-500.73448024,0.00016973,2]
[399742044,1766650245768,-502.35105933,0.00016973,2]
[399742045,1766650245777,-500.0,0.00016973,2]
[399742046,1766650245788,-500.0,0.00016973,2]
[399742047,1766650245798,-500.0,0.00016973,2]
[399742048,1766650245808,-268.0,0.00016977,2]
[399742049,1766650245818,-600.0,0.00016986,2]
[399742050,1766650245828,-152.0,0.0001699,2]
[399742051,1766650245838,-164.08,0.0001699,2]
[399742052,1766650245848,-151.0,0.00016995,2]
[399742053,1766650245865,-550.16,0.00016997,2]
[399742054,1766650245876,-644.18528061,0.00016997,2]
[399742055,1766650245886,-500.0,0.00016997,2]
[399742056,1766650245897,-500.0,0.00016997,2]
[399742057,1766650245907,-500.0,0.00016997,2]
[399742058,1766650245918,-177.66511868,0.00016997,2]
[399742059,1766650245928,-500.0,0.00016997,2]
[399742060,1766650245938,-500.0,0.00016997,2]
[399742061,1766650245948,-151.0,0.00016997,2]
[399742062,1766650245958,-6769.682052,0.00016998,2]
[399742063,1766650245968,-154203.6558569,0.00016998,2]
[399742064,1766650245978,-2256.560684,0.00016998,2]
[399742065,1766650245988,-300.0,0.00016999,2]
[399742066,1766650245999,-666.0,0.00016999,2]
[399742067,1766650246009,-300.0,0.00016999,2]
[399742068,1766650246019,-300.0,0.00016999,2]
[399742069,1766650246030,-666.0,0.00016999,2]
[399742070,1766650246040,-550.16,0.00016999,2]
[399742071,1766650246050,-550.16,0.00016999,2]
[399742072,1766650246060,-550.16,0.00016999,2]
[399742073,1766650246071,-550.16,0.00016999,2]
[399742075,1766650246081,-550.16,0.00016999,2]
[399742076,1766650246091,-550.16,0.00016999,2]
[399742077,1766650246101,-550.16,0.00016999,2]
[399742078,1766650246112,-550.16,0.00016999,2]
[399742079,1766650246122,-500.0,0.00016999,2]
[399742080,1766650246141,-500.0,0.00016999,2]
[399742081,1766650246152,-500.0,0.00016999,2]
[399742082,1766650246168,-500.0,0.00016999,2]
[399742083,1766650246183,-500.0,0.00016999,2]
[399742084,1766650246193,-500.0,0.00016999,2]
[399742085,1766650246203,-500.0,0.00016999,2]
[399742086,1766650246214,-500.0,0.00016999,2]
[399742087,1766650246224,-500.0,0.00016999,2]
[399742088,1766650246239,-500.0,0.00016999,2]
[399742089,1766650246249,-500.0,0.00016999,2]
[399742090,1766650246259,-500.0,0.00016999,2]
[399742091,1766650246270,-500.0,0.00016999,2]
[399742092,1766650246281,-500.0,0.00016999,2]
[399742093,1766650246291,-500.0,0.00016999,2]
[399742094,1766650246300,-500.0,0.00016999,2]
[399742095,1766650246311,-500.0,0.00016999,2]
[399742096,1766650246321,-500.0,0.00016999,2]
[399742097,1766650246331,-500.0,0.00016999,2]
[399742098,1766650246342,-500.0,0.00016999,2]
[399742099,1766650246352,-500.0,0.00016999,2]
[399742100,1766650246363,-500.0,0.00016999,2]
[399742101,1766650246372,-500.0,0.00016999,2]
[399742102,1766650246382,-500.0,0.00016999,2]
[399742103,1766650246393,-500.0,0.00016999,2]
[399742104,1766650246404,-500.0,0.00016999,2]
[399742105,1766650246415,-500.0,0.00016999,2]
[399742106,1766650246429,-500.0,0.00016999,2]
[399742107,1766650246445,-500.0,0.00016999,2]
[399742108,1766650246455,-500.0,0.00016999,2]
[399742109,1766650246466,-500.0,0.00016999,2]
[399742110,1766650246477,-500.0,0.00016999,2]
[399742111,1766650246488,-500.0,0.00016999,2]
[399742112,1766650246498,-500.0,0.00016999,2]
[399742113,1766650246509,-500.0,0.00016999,2]
[399742114,1766650246520,-500.0,0.00016999,2]
[399742115,1766650246530,-500.0,0.00016999,2]
[399742116,1766650246541,-500.0,0.00016999,2]
[399742117,1766650246552,-500.0,0.00016999,2]
[399742118,1766650246562,-500.0,0.00016999,2]
[399742119,1766650246572,-1517249.55669177,0.00017,2]
[399742120,1766650246592,-971.65257382,0.00017,2]
[399742121,1766650246605,-253.32245159,0.00017,2]
[399742122,1766650246618,-281.5791975,0.00017,2]
[399742123,1766650246640,-570.39513047,0.00017,2]
[399742124,1766650246652,-5350.87,0.00017,2]
[399742125,1766650246664,-286926.26983152,0.00017,2]
[399742126,1766650246674,-151.0,0.00017,2]
[399742127,1766650246684,-152.0,0.00017,2]
[399742128,1766650246695,-2000.0,0.00017,2]
[399742129,1766650246705,-250.0,0.00017,2]
[399742130,1766650246715,-151.0,0.00017,2]
[399742131,1766650246725,-1256.0,0.00017,2]
[399742132,1766650246735,-152.0,0.00017,2]
[399742133,1766650246746,-1256.0,0.00017,2]
[399742134,1766650246756,-1256.0,0.00017,2]
[399742135,1766650246767,-1256.0,0.00017,2]
[399742136,1766650246778,-1256.0,0.00017,2]
[399742137,1766650246789,-500.0,0.00017,2]
[399742138,1766650246799,-500.0,0.00017028,2]
[399742139,1766650246810,-500.0,0.00017055,2]
[399742140,1766650246821,-500.0,0.00017083,2]
[399742141,1766650246831,-500.0,0.0001711,2]
[399742142,1766650246842,-1098.0,0.00017121,2]
[399742143,1766650246852,-312.0,0.00017132,2]
[399742144,1766650246862,-500.0,0.00017137,2]
[399742145,1766650246872,-1600.0,0.00017205,2]
[399742146,1766650246883,-3282.27716265,0.00017455,2]
[399742147,1766650246893,-8448.99197037,0.00017511,2]
[399742148,1766650246903,-1000.0,0.00017521,2]
[399742149,1766650246914,-1000.0,0.00017521,2]
[399742150,1766650246924,-1000.0,0.00017521,2]
[399742151,1766650246934,-622.40483388,0.00017521,2]
[399742152,1766650246947,-937.14765558,0.00017521,2]
[399742153,1766650246958,-626.04,0.00017534,2]
[399742154,1766650246969,-403.0,0.000177,5]
[399742155,1766650246979,-3208.6,0.0001777,2]
[399742156,1766650246989,-500.0,0.00017808,2]
[399742157,1766650246999,-500.0,0.00017835,2]
[399742158,1766650247023,-162.00371102,0.00017863,2]
[399742159,1766650247035,-713.71033816,0.00017923,2]
[399742160,1766650247046,-199.75415694,0.00017923,2]
[399742161,1766650247056,-500.0,0.00017973,2]
[399742162,1766650247067,-500.0,0.00017973,2]
[399742163,1766650247078,-500.0,0.00017973,2]
[399742164,1766650247088,-500.0,0.00017973,2]
[399742165,1766650247099,-598.60555363,0.00017973,2]
[399742166,1766650247110,-500.0,0.00017973,2]
[399742167,1766650247120,-500.0,0.00017973,2]
[399742168,1766650247130,-349.16265713,0.00017973,2]
[399742169,1766650247141,-559.28446362,0.00017973,2]
[399742170,1766650247152,-500.0,0.00017973,2]
[399742171,1766650247163,-515.54072242,0.00017973,2]
[399742172,1766650247173,-500.0,0.00017973,2]
[399742173,1766650247184,-648.46173605,0.00017973,2]
[399742174,1766650247194,-500.0,0.00017973,2]
[399742175,1766650247204,-500.0,0.00017973,2]
[399742176,1766650247215,-500.0,0.00017973,2]
[399742177,1766650247225,-500.0,0.00017973,2]
[399742178,1766650247236,-500.0,0.00017973,2]
[399742179,1766650247247,-500.0,0.00017973,2]
[399742180,1766650247258,-500.0,0.00017973,2]
[399742181,1766650247268,-500.0,0.00017973,2]
[399742182,1766650247278,-500.0,0.00017973,2]
[399742183,1766650247289,-500.0,0.00017973,2]
[399742184,1766650247299,-500.0,0.00017973,2]
[399742185,1766650247309,-500.0,0.00017973,2]
[399742186,1766650247320,-500.0,0.00017973,2]
[399742187,1766650247331,-500.0,0.00017973,2]
[399742188,1766650247342,-164.92711325,0.00017973,2]
[399742189,1766650247352,-500.0,0.00017973,2]
[399742190,1766650247368,-500.0,0.00017973,2]
[399742191,1766650247379,-500.0,0.00017973,2]
[399742192,1766650247390,-500.0,0.00017973,2]
[399742193,1766650247402,-207.3850141,0.00017973,2]
[399742194,1766650247414,-500.0,0.00017973,2]
[399742195,1766650247424,-300.0,0.00017999,2]
[399742196,1766650247437,-300.0,0.00017999,2]
[399742197,1766650247449,-550.16,0.00017999,2]
[399742198,1766650247459,-470.9790947,0.00017999,2]
[399742199,1766650247469,-500.0,0.00017999,2]
[399742200,1766650247482,-500.0,0.00017999,2]
[399742201,1766650247493,-500.0,0.00017999,2]
[399742202,1766650247504,-500.0,0.00017999,2]
[399742203,1766650247516,-213629.13418948,0.00018,2]
[399742204,1766650247541,-38790.71359016,0.00018,2]
[399742205,1766650247552,-1098.0,0.00018023,2]
[399742206,1766650247562,-505.67621891,0.00018068,2]
[399742207,1766650247573,-1505.95243998,0.00018068,2]
[399742208,1766650247585,-881.79,0.0001808,2]
[399742209,1766650247595,-1000.0,0.00018082,2]
[399742210,1766650247606,-162.74,0.00018216,2]
[399742211,1766650247617,-1613.0,0.00018452,2]
[399742212,1766650247628,-1000.0,0.00018521,2]
[399742213,1766650247639,-1000.0,0.0001862,2]
[399742214,1766650247651,-1000.0,0.0001876,2]
[399742215,1766650247661,-151.02,0.000188,2]
[399742216,1766650247672,-151.02,0.000188,2]
[399742217,1766650247683,-151.02,0.000188,2]
[399742218,1766650247693,-151.02,0.000188,2]
[399742219,1766650247704,-151.02,0.000188,2]
[399742220,1766650247714,-151.02,0.000188,2]
[399742221,1766650247731,-151.02,0.000188,2]
[399742222,1766650247741,-151.02,0.000188,2]
[399742223,1766650247752,-151.02,0.000188,2]
[399742224,1766650247763,-151.02,0.000188,2]
[399742225,1766650247774,-151.02,0.000188,2]
[399742226,1766650247784,-151.02,0.000188,2]
[399742227,1766650247794,-156.81485742,0.00018824,3]
[399742228,1766650247804,-253.79904936,0.00018824,2]
[399742229,1766650247815,-223.45632631,0.00018824,2]
[399742230,1766650247826,-550.16,0.00018885,2]
[399742231,1766650247837,-500.0,0.00018885,2]
[399742232,1766650247847,-500.0,0.00018885,2]
[399742233,1766650247857,-500.0,0.00018885,2]
[399742234,1766650247868,-500.0,0.00018885,2]
[399742235,1766650247879,-154203.6558569,0.00018886,2]
[399742236,1766650247888,-3282.27716265,0.00018924,2]
[399742237,1766650247899,-1600.0,0.00018925,2]
[399742238,1766650247909,-8448.99197037,0.00018968,2]
[399742239,1766650247919,-300.0,0.0001897,2]
[399742240,1766650247930,-1098.0,0.00018971,2]
[399742241,1766650247941,-250.0,0.00019,7]
[399742242,1766650247951,-1409.08096258,0.00019,2]
[399742243,1766650247962,-48998.18263717,0.00019,2]
[399742244,1766650247976,-54583.92452754,0.00019,2]
[399742245,1766650247987,-300.0,0.00019,2]
[399742246,1766650247998,-646.31587738,0.00019,2]
[399742247,1766650248009,-6769.682052,0.00019134,2]
[399742248,1766650248019,-2256.560684,0.00019134,2]
[399742249,1766650248030,-1080.0,0.00019144,2]
[399742250,1766650248040,-373.17395227,0.00019314,2]
[399742251,1766650248050,-1000.0,0.00019438,2]
[399742252,1766650248061,-1080.0,0.00019614,2]
[399742253,1766650248072,-177.74,0.0001963,2]
[399742254,1766650248082,-3403.3,0.00019712,2]
[399742255,1766650248093,-1080.0,0.0001973,2]
[399742256,1766650248104,-1080.0,0.00019772,2]
[399742257,1766650248115,-1080.0,0.00019775,2]
[399742258,1766650248125,-1098.0,0.0001997,2]
[399742259,1766650248136,-550.16,0.00019999,2]
[399742260,1766650248146,-326.94956399,0.00019999,2]
[399742261,1766650248157,-500.0,0.00019999,2]
[399742262,1766650248167,-500.0,0.00019999,2]
[399742263,1766650248178,-500.0,0.00019999,2]
[399742264,1766650248189,-17236.248862,0.0002,2]
[399742265,1766650248199,-3088.33,0.0002,2]
[399742266,1766650248210,-4984.09272893,0.0002,4]
[399742267,1766650248220,-250.0,0.0002,7]
[399742268,1766650248231,-200.0,0.0002,2]
[399742269,1766650248242,-999.9999,0.0002,2]
[399742270,1766650248253,-1080.0,0.00020004,2]
[399742271,1766650248274,-2883.46553567,0.000201,2]
[399742272,1766650248284,-1000.0,0.00020116,2]
[399742273,1766650248295,-1080.0,0.00020121,2]
[399742274,1766650248305,-1000.0,0.00020187,2]
[399742275,1766650248315,-2258.0,0.00020266,2]
[399742276,1766650248325,-1077.0,0.00020272,2]
[399742277,1766650248336,-849.0,0.000203,2]
[399742278,1766650248346,-976.0,0.000203,2]
[399742279,1766650248358,-305.0,0.000203,2]
[399742280,1766650248368,-1077.0,0.00020376,2]
[399742281,1766650248378,-1077.0,0.00020379,2]
[399742282,1766650248388,-1077.0,0.00020383,2]
[399742283,1766650248398,-1077.0,0.00020391,2]
[399742284,1766650248408,-3282.27716265,0.00020393,2]
[399742285,1766650248418,-8448.99197037,0.00020426,2]
[399742286,1766650248428,-600.0,0.00020437,2]
[399742287,1766650248442,-1077.0,0.00020464,2]
[399742288,1766650248452,-1077.0,0.00020468,2]
[399742289,1766650248462,-1077.0,0.00020496,2]
[399742290,1766650248472,-1077.0,0.00020544,2]
[399742291,1766650248483,-1338.0,0.00020559,2]
[399742292,1766650248493,-1600.0,0.00020646,2]
[399742293,1766650248503,-1077.0,0.00020668,2]
[399742294,1766650248513,-1000.0,0.00020689,2]
[399742295,1766650248524,-2000.0,0.000207,2]
[399742296,1766650248534,-635.1033867,0.00020731,2]
[399742297,1766650248544,-150.0,0.00020763,2]
[399742298,1766650248554,-151.0,0.0002077,2]